fUST/lending_fUST_20260408
["ID","MTS","AMOUNT","RATE_DAILY","PERIOD"]
[420049603,1775632804789,161.34,9.2e-05,2]
[420049604,1775632805132,161.34,9.3e-05,2]
[420049605,1775632805579,161.34,9.4e-05,2]
[420049606,1775632806007,161.34,9.5e-05,2]
[420049607,1775632806667,161.34,9.6e-05,2]
[420049608,1775632806784,161.34,9.7e-05,2]
[420049609,1775632807124,161.34,9.7e-05,2]
[420049610,1775632807539,161.34,9.8e-05,2]
[420049611,1775632807959,161.34,9.9e-05,2]
[420049634,1775632903181,152.1508606,0.00030137,120]
[420049635,1775632909020,311.9,0.00030137,120]
[420049640,1775632946995,1139.04648918,0.000306,120]
[420049641,1775632947543,1139.04648918,0.000315,120]
[420049644,1775632989393,1066.73605108,0.000306,120]
[420049645,1775632990382,1066.73605108,0.000315,120]
[420049666,1775633002547,155.0,0.0001,2]
[420049731,1775633026282,417.08395958,0.000306,120]
[420049732,1775633026852,417.08395958,0.000315,120]
[420049733,1775633037780,174.3898889,0.000306,120]
[420049734,1775633038985,174.3898889,0.000315,120]
[420049736,1775633046916,337.81585852,0.000306,120]
[420049738,1775633047465,337.81585852,0.000315,120]
[420049739,1775633048052,172.97387975,0.000306,120]
[420049740,1775633048605,172.97387975,0.000315,120]
[420049741,1775633049360,160.03572207,0.000306,120]
[420049742,1775633049675,160.03572207,0.000315,120]
[420049743,1775633051891,522.63179079,0.000306,120]
[420049744,1775633052527,522.63179079,0.000315,120]
[420049745,1775633052621,522.63179079,0.000306,120]
[420049746,1775633053248,522.63179079,0.000315,120]
[420049748,1775633057833,327.61839627,0.000306,120]
[420049749,1775633058198,327.61839627,0.000315,120]
[420049750,1775633060363,213.95176126,0.000306,120]
[420049751,1775633060902,213.95176126,0.000315,120]
[420049752,1775633076079,172.51153436,0.000306,120]
[420049753,1775633076593,172.51153436,0.000315,120]
[420049754,1775633088199,170.37346588,0.000306,120]
[420049755,1775633088744,170.37346588,0.000315,120]
[420049756,1775633092711,1000.0,0.00031507,120]
[420049757,1775633093699,1000.0,0.00031507,120]
[420049758,1775633094560,1000.0,0.00031507,120]
[420049759,1775633095529,1000.0,0.00031507,120]
[420049763,1775633163396,419.12261302,0.0003,120]
[420049766,1775633178531,1000.0,0.00031507,120]
[420049769,1775633261088,683.42789351,0.000306,120]
[420049770,1775633261805,683.42789351,0.000315,120]
[420049773,1775633303910,640.04163065,0.000306,120]
[420049774,1775633304787,640.04163065,0.000315,120]
[420049775,1775633340378,250.25037575,0.000306,120]
[420049776,1775633341089,250.25037575,0.000315,120]
[420049777,1775633351460,174.38988891,0.000306,120]
[420049778,1775633352007,174.38988891,0.000315,120]
[420049780,1775633361172,202.68951511,0.000306,120]
[420049781,1775633361508,172.97387974,0.000306,120]
[420049782,1775633361734,202.68951511,0.000315,120]
[420049785,1775633363262,160.03572206,0.000306,120]
[420049790,1775633363812,160.03572206,0.000315,120]
[420049800,1775633366126,174.21059692,0.000306,120]
[420049803,1775633366681,174.21059692,0.000315,120]
[420049821,1775633372522,196.57103776,0.000306,120]
[420049822,1775633372689,196.57103776,0.000315,120]
[420049828,1775633374320,160.46382095,0.000306,120]
[420049830,1775633374884,160.46382095,0.000315,120]
[420049831,1775633390291,172.51153436,0.000306,120]
[420049832,1775633390852,172.51153436,0.000315,120]
[420049873,1775633432643,-195.36311149,0.00012288,2]
[420049875,1775633432653,-593.0,0.00012288,2]
[420049876,1775633432662,-181.33842867,0.00012537,2]
[420049879,1775633432674,-57.71210401,0.00012537,2]
[420049881,1775633432685,-293.04466723,0.00012537,2]
[420049883,1775633432695,-239.05053268,0.00012538,2]
[420049884,1775633432705,-4.73758316,0.00012664,2]
[420049902,1775633432877,-234.31294952,0.00012664,2]
[420049904,1775633432886,-239.05053268,0.00012665,2]
[420049906,1775633432896,-180.14245535,0.00012793,2]
[420050032,1775633442989,-29.40780388,0.00012793,2]
[420050033,1775633442999,-601.0,0.00012793,2]
[420050034,1775633443010,-1000.0,0.00013699,2]
[420050035,1775633443021,-251.11932049,0.00016237,2]
[420050036,1775633443032,-300.0,0.00016424,2]
[420050037,1775633443043,-1200.0,0.00016424,2]
[420050038,1775633443054,-4421.24090705,0.00016425,2]
[420050039,1775633443065,-743.59535696,0.00017959,2]
[420050040,1775633443077,-689.04929195,0.00018904,2]
[420050041,1775633443088,-705.33660732,0.00019376,2]
[420050042,1775633443101,-25695.13902597,0.0001938,2]
[420050153,1775633444303,-373.37848177,0.0001938,2]
[420050155,1775633444314,-500.0,0.00019473,2]
[420050157,1775633444325,-500.0,0.00019473,2]
[420050159,1775633444336,-500.0,0.00019473,2]
[420050161,1775633444346,-500.0,0.00019473,2]
[420050163,1775633444356,-500.0,0.00019473,2]
[420050165,1775633444366,-7026.99058754,0.000195,2]
[420050178,1775633444601,-7759.71819105,0.000195,2]
[420050179,1775633444612,-1044310.64204509,0.000195,2]
[420050181,1775633444622,-151.0,0.000195,2]
[420050183,1775633444633,-151.0,0.000195,2]
[420050185,1775633444645,-151.0,0.000195,2]
[420050187,1775633444655,-151.0,0.000195,2]
[420050189,1775633444665,-151.0,0.000195,2]
[420050191,1775633444675,-151.0,0.000195,2]
[420050192,1775633444685,-151.0,0.000195,2]
[420050193,1775633444695,-151.0,0.000195,2]
[420050194,1775633444704,-151.0,0.000195,2]
[420050195,1775633444713,-151.0,0.000195,2]
[420050196,1775633444723,-151.0,0.000195,2]
[420050197,1775633444733,-151.0,0.000195,2]
[420050198,1775633444743,-151.0,0.000195,2]
[420050199,1775633444753,-151.0,0.000195,2]
[420050200,1775633444762,-151.0,0.000195,2]
[420050201,1775633444771,-151.0,0.000195,2]
[420050202,1775633444781,-151.0,0.000195,2]
[420050217,1775633445033,-151.0,0.000195,2]
[420050222,1775633445072,-151.0,0.000195,2]
[420050224,1775633445082,-151.0,0.000195,2]
[420050226,1775633445092,-151.0,0.000195,2]
[420050228,1775633445101,-151.0,0.000195,2]
[420050230,1775633445111,-151.0,0.000195,2]
[420050232,1775633445121,-19.07419381,0.000195,2]
[420050458,1775633447378,-131.92580619,0.000195,2]
[420050460,1775633447387,-151.0,0.000195,2]
[420050462,1775633447397,-151.0,0.000195,2]
[420050463,1775633447407,-151.0,0.000195,2]
[420050465,1775633447417,-151.0,0.000195,2]
[420050467,1775633447427,-151.0,0.000195,2]
[420050469,1775633447437,-131.17495195,0.000195,2]
[420050472,1775633447449,-19.82504805,0.000195,2]
[420050474,1775633447459,-151.0,0.000195,2]
[420050476,1775633447470,-151.0,0.000195,2]
[420050478,1775633447480,-151.0,0.000195,2]
[420050480,1775633447490,-151.0,0.000195,2]
[420050482,1775633447499,-151.0,0.000195,2]
[420050483,1775633447509,-151.0,0.000195,2]
[420050486,1775633447519,-151.0,0.000195,2]
[420050487,1775633447529,-151.0,0.000195,2]
[420050489,1775633447538,-151.0,0.000195,2]
[420050492,1775633447550,-151.0,0.000195,2]
[420050494,1775633447560,-151.0,0.000195,2]
[420050496,1775633447570,-151.0,0.000195,2]
[420050498,1775633447579,-151.0,0.000195,2]
[420050500,1775633447589,-151.0,0.000195,2]
[420050501,1775633447599,-151.0,0.000195,2]
[420050503,1775633447609,-151.0,0.000195,2]
[420050505,1775633447620,-151.0,0.000195,2]
[420050508,1775633447630,-151.0,0.000195,2]
[420050510,1775633447640,-151.0,0.000195,2]
[420050512,1775633447649,-151.0,0.000195,2]
[420050514,1775633447659,-500.0,0.000195,2]
[420050516,1775633447669,-151.0,0.000195,2]
[420050518,1775633447680,-151.0,0.000195,2]
[420050519,1775633447690,-151.0,0.000195,2]
[420050521,1775633447700,-100.28002734,0.000195,2]
[420051410,1775633575706,410.0567361,0.000306,120]
[420051411,1775633576326,410.0567361,0.000315,120]
[420051413,1775633617909,384.02497839,0.000306,120]
[420051414,1775633618467,384.02497839,0.000315,120]
[420051416,1775633655404,187.68778182,0.000306,120]
[420051417,1775633655949,187.68778182,0.000315,120]
[420051419,1775633675213,202.68951512,0.000306,120]
[420051420,1775633675761,202.68951512,0.000315,120]
[420051421,1775633676855,160.03572207,0.000306,120]
[420051422,1775633680048,174.21059693,0.000306,120]
[420051423,1775633686658,196.57103776,0.000306,120]
[420051424,1775633687197,196.57103776,0.000315,120]
[420051425,1775633687906,160.46382095,0.000306,120]
[420051426,1775633688446,160.46382095,0.000315,120]
[420051428,1775633703788,172.51153436,0.000306,120]
[420051438,1775633890299,246.03404166,0.000306,120]
[420051439,1775633891038,246.03404166,0.000315,120]
[420051443,1775633948261,230.41498704,0.000306,120]
[420051444,1775633948814,230.41498704,0.000315,120]
[420051445,1775633969300,187.68778181,0.000306,120]
[420051446,1775633969865,187.68778181,0.000315,120]
[420051449,1775633988175,202.68951511,0.000306,120]
[420051450,1775633999700,196.57103775,0.000306,120]
[420051463,1775634204644,184.52553125,0.000306,120]
[420051464,1775634205189,184.52553125,0.000315,120]
[420051466,1775634262514,172.81124027,0.000306,120]
[420051467,1775634263057,172.81124027,0.000315,120]
[420051480,1775634512757,159.63931352,0.00031506,120]
[420051481,1775634518126,184.52553125,0.000306,120]
[420051482,1775634518735,184.52553125,0.000315,120]
[420051483,1775634575981,172.81124028,0.000306,120]
[420051484,1775634576540,172.81124028,0.000315,120]
[420051539,1775634634685,-300.0,0.00013698,2]
[420051541,1775634634696,-200.0,0.00013698,2]
[420051543,1775634634707,-415.0,0.00013698,2]
[420051545,1775634634718,-1000.0,0.00013699,2]
[420051547,1775634634727,-583.52186544,0.00018714,2]
[420051549,1775634634737,-300.0,0.00018769,2]
[420051551,1775634634748,-1200.0,0.00018769,2]
[420051553,1775634634758,-5425.534183,0.0001877,2]
[420051555,1775634634768,-7786.08832157,0.00019099,2]
[420051557,1775634634780,-458.037999,0.00019099,2]
[420051560,1775634634793,-891.0,0.00019099,2]
[420051873,1775634638338,-18060.6835027,0.00019099,2]
[420051874,1775634638350,-3583.73877053,0.00019099,2]
[420051875,1775634638362,-8995.67671262,0.00019099,2]
[420051876,1775634638372,-18357.28587843,0.00019199,2]
[420052426,1775634646418,-10747.25965567,0.00019199,2]
[420052428,1775634646429,-500.0,0.00019273,2]
[420052430,1775634646439,-500.0,0.00019273,2]
[420052432,1775634646449,-256.83787609,0.00019287,2]
[420052434,1775634646458,-500.0,0.00019299,2]
[420052436,1775634646468,-151.0,0.00019299,2]
[420052438,1775634646477,-151.0,0.00019299,2]
[420052440,1775634646487,-151.0,0.00019299,2]
[420052442,1775634646496,-151.0,0.00019299,2]
[420052445,1775634646507,-151.0,0.00019299,2]
[420052447,1775634646517,-151.0,0.00019299,2]
[420052449,1775634646527,-151.0,0.00019299,2]
[420052451,1775634646536,-151.0,0.00019299,2]
[420052452,1775634646547,-151.0,0.00019299,2]
[420052454,1775634646557,-151.0,0.00019299,2]
[420052456,1775634646566,-151.0,0.00019299,2]
[420052458,1775634646575,-151.0,0.00019299,2]
[420052460,1775634646585,-10.72578858,0.00019299,2]
[420052463,1775634646597,-140.27421142,0.00019299,2]
[420052465,1775634646607,-151.0,0.00019299,2]
[420052467,1775634646617,-151.0,0.00019299,2]
[420052469,1775634646626,-151.0,0.00019299,2]
[420052471,1775634646635,-151.0,0.00019299,2]
[420052472,1775634646644,-151.0,0.00019299,2]
[420052475,1775634646655,-151.0,0.00019299,2]
[420052477,1775634646665,-151.0,0.00019299,2]
[420052479,1775634646675,-151.0,0.00019299,2]
[420052481,1775634646685,-151.0,0.00019299,2]
[420052483,1775634646694,-151.0,0.00019299,2]
[420052484,1775634646704,-151.0,0.00019299,2]
[420052486,1775634646714,-151.0,0.00019299,2]
[420052488,1775634646723,-151.0,0.00019299,2]
[420052490,1775634646732,-151.0,0.00019299,2]
[420052492,1775634646742,-151.0,0.00019299,2]
[420052494,1775634646751,-151.0,0.00019299,2]
[420052496,1775634646761,-151.0,0.00019299,2]
[420052498,1775634646771,-151.0,0.00019299,2]
[420052500,1775634646780,-151.0,0.00019299,2]
[420052502,1775634646790,-151.0,0.00019299,2]
[420052504,1775634646799,-151.0,0.00019299,2]
[420052506,1775634646809,-151.0,0.00019299,2]
[420052508,1775634646819,-151.0,0.00019299,2]
[420052510,1775634646829,-151.0,0.00019299,2]
[420052512,1775634646839,-151.0,0.00019299,2]
[420052514,1775634646849,-151.0,0.00019299,2]
[420052516,1775634646860,-151.0,0.00019299,2]
[420052518,1775634646869,-151.0,0.00019299,2]
[420052520,1775634646879,-151.0,0.00019299,2]
[420052522,1775634646889,-151.0,0.00019299,2]
[420052524,1775634646899,-151.0,0.00019299,2]
[420052526,1775634646909,-151.0,0.00019299,2]
[420052528,1775634646918,-151.0,0.00019299,2]
[420052530,1775634646929,-151.0,0.00019299,2]
[420052532,1775634646939,-151.0,0.00019299,2]
[420052534,1775634646948,-151.0,0.00019299,2]
[420052536,1775634646959,-151.0,0.00019299,2]
[420052538,1775634646969,-151.0,0.00019299,2]
[420052540,1775634646978,-151.0,0.00019299,2]
[420052542,1775634646988,-151.0,0.00019299,2]
[420052544,1775634646998,-151.0,0.00019299,2]
[420052546,1775634647007,-151.0,0.00019299,2]
[420052548,1775634647017,-151.0,0.00019299,2]
[420052550,1775634647026,-151.0,0.00019299,2]
[420052552,1775634647035,-151.0,0.00019299,2]
[420052554,1775634647045,-151.0,0.00019299,2]
[420052556,1775634647054,-151.0,0.00019299,2]
[420052558,1775634647063,-151.0,0.00019299,2]
[420052560,1775634647073,-151.0,0.00019299,2]
[420052562,1775634647082,-151.0,0.00019299,2]
[420052564,1775634647092,-151.0,0.00019299,2]
[420052566,1775634647102,-151.0,0.00019299,2]
[420052568,1775634647111,-151.0,0.00019299,2]
[420052570,1775634647121,-151.0,0.00019299,2]
[420052572,1775634647130,-151.0,0.00019299,2]
[420052574,1775634647139,-151.0,0.00019299,2]
[420052576,1775634647148,-151.0,0.00019299,2]
[420052578,1775634647157,-151.0,0.00019299,2]
[420052580,1775634647168,-151.0,0.00019299,2]
[420052582,1775634647178,-151.0,0.00019299,2]
[420052584,1775634647193,-151.0,0.00019299,2]
[420052586,1775634647203,-151.0,0.00019299,2]
[420052588,1775634647213,-151.0,0.00019299,2]
[420052590,1775634647223,-151.0,0.00019299,2]
[420052592,1775634647232,-151.0,0.00019299,2]
[420052594,1775634647242,-151.0,0.00019299,2]
[420052596,1775634647252,-151.0,0.00019299,2]
[420052598,1775634647262,-151.0,0.00019299,2]
[420052600,1775634647272,-151.0,0.00019299,2]
[420052602,1775634647282,-151.0,0.00019299,2]
[420052604,1775634647291,-151.0,0.00019299,2]
[420052606,1775634647301,-151.0,0.00019299,2]
[420052608,1775634647310,-151.0,0.00019299,2]
[420052610,1775634647320,-151.0,0.00019299,2]
[420052612,1775634647330,-151.0,0.00019299,2]
[420052614,1775634647340,-151.0,0.00019299,2]
[420052616,1775634647350,-151.0,0.00019299,2]
[420052618,1775634647360,-151.0,0.00019299,2]
[420052621,1775634647371,-151.0,0.00019299,2]
[420052623,1775634647381,-151.0,0.00019299,2]
[420052624,1775634647391,-151.0,0.00019299,2]
[420052626,1775634647400,-151.0,0.00019299,2]
[420052627,1775634647410,-151.0,0.00019299,2]
[420052628,1775634647419,-151.0,0.00019299,2]
[420052629,1775634647428,-151.0,0.00019299,2]
[420052630,1775634647438,-151.0,0.00019299,2]
[420052631,1775634647448,-151.0,0.00019299,2]
[420052632,1775634647458,-470.22440488,0.00019352,2]
[420052633,1775634647468,-500.0,0.00019367,2]
[420052634,1775634647478,-500.0,0.00019499,2]
[420052635,1775634647488,-3044.0575979,0.000195,2]
[420052636,1775634647497,-500.0,0.00019573,2]
[420052637,1775634647507,-588.94086443,0.00019599,2]
[420052638,1775634647517,-500.0,0.00019599,2]
[420052639,1775634647526,-204.71716468,0.000196,2]
[420052640,1775634647536,-317.62994617,0.00019699,2]
[420052641,1775634647546,-689.03832134,0.00019699,2]
[420052642,1775634647555,-1269.24926491,0.00019699,2]
[420052643,1775634647566,-919.88413343,0.00019699,2]
[420052644,1775634647576,-421.0,0.00019762,5]
[420052645,1775634647586,-789.0,0.000198,2]
[420052646,1775634647595,-1000.0,0.00019821,2]
[420052647,1775634647605,-1000.0,0.00019821,2]
[420052648,1775634647615,-514.50650551,0.00019847,2]
[420052649,1775634647625,-1406.0,0.00019847,2]
[420052650,1775634647634,-644.0,0.00019847,2]
[420052651,1775634647644,-2206.0,0.00019847,2]
[420052652,1775634647654,-550.477,0.00019847,2]
[420052653,1775634647664,-184.0,0.00019847,2]
[420052654,1775634647674,-440.0,0.00019847,2]
[420052655,1775634647685,-153.0,0.00019855,2]
[420052656,1775634647695,-1000.0,0.00019915,2]
[420052657,1775634647705,-436.14051936,0.0002,2]
[420052658,1775634647715,-282.71763686,0.0002,2]
[420052660,1775634647724,-6619.14879557,0.0002,5]
[420052662,1775634647734,-1368.27434325,0.0002,2]
[420052664,1775634647743,-500.0,0.0002,2]
[420052666,1775634647752,-1197.12659,0.0002,2]
[420052668,1775634647762,-500.0,0.00020081,2]
[420052670,1775634647771,-200.0,0.00020155,2]
[420052672,1775634647781,-152.726,0.00020228,2]
[420052674,1775634647791,-153.443,0.00020228,2]
[420052676,1775634647800,-266.767,0.00020228,2]
[420052677,1775634647810,-1370.97307579,0.000203,2]
[420052679,1775634647820,-1500.0,0.00020368,2]
[420052681,1775634647829,-1155.57277204,0.00020368,2]
[420052683,1775634647839,-387.0,0.00020422,7]
[420052685,1775634647848,-1500.0,0.00020463,2]
[420052687,1775634647858,-500.0,0.00020469,2]
[420052689,1775634647867,-261.76731725,0.00020497,2]
[420052691,1775634647876,-500.0,0.000205,2]
[420052693,1775634647887,-529.92670715,0.000205,2]
[420052695,1775634647896,-160.0,0.000205,2]
[420052697,1775634647906,-250.0,0.00020547,2]
[420052699,1775634647916,-1006.17,0.000208,5]
[420052701,1775634647925,-500.0,0.0002081,2]
[420052703,1775634647934,-168.0,0.00020855,2]
[420052705,1775634647944,-200.0,0.00020855,2]
[420052707,1775634647953,-153.0,0.00020855,2]
[420052709,1775634647962,-500.0,0.00020858,2]
[420052710,1775634647971,-168.0,0.00020899,2]
[420052712,1775634647981,-600.0,0.00020907,2]
[420052714,1775634647991,-2000.0,0.00020916,2]
[420052716,1775634648001,-168.0,0.00020982,2]
[420052718,1775634648010,-500.0,0.00020999,2]
[420052720,1775634648020,-515.84623031,0.00020999,2]
[420052722,1775634648030,-500.0,0.00020999,2]
[420052724,1775634648039,-500.0,0.00020999,2]
[420052726,1775634648049,-500.0,0.00020999,2]
[420052729,1775634648060,-500.0,0.00020999,2]
[420052731,1775634648070,-166.53304426,0.00020999,2]
[420052733,1775634648080,-500.0,0.00020999,2]
[420052734,1775634648090,-220.421608,0.00020999,2]
[420052736,1775634648099,-500.0,0.00020999,2]
[420052738,1775634648110,-275.14435076,0.00020999,2]
[420052740,1775634648119,-6752.63634537,0.00021,5]
[420052767,1775634648381,-1699.29526093,0.00021,5]
[420052769,1775634648394,-567.0885329,0.00021,5]
[420052771,1775634648404,-150.43,0.00021,2]
[420052773,1775634648414,-3000.0,0.00021,2]
[420052775,1775634648424,-3000.0,0.0002101,2]
[420052777,1775634648433,-2000.0,0.00021011,2]
[420052779,1775634648443,-168.0,0.0002102,2]
[420052781,1775634648453,-330.87144029,0.0002102,2]
[420052966,1775634650397,-2669.12855971,0.0002102,2]
[420052968,1775634650407,-1886.08621513,0.0002103,2]
[420052970,1775634650419,-1113.91378487,0.0002103,2]
[420052973,1775634650428,-168.0,0.00021032,2]
[420052975,1775634650438,-866.7906899,0.0002104,2]
[420052977,1775634650450,-478.55877297,0.0002104,2]
[420053254,1775634842218,843.01274468,0.00031507,120]
[420053261,1775635069429,3000.0,0.00031506,120]
[420053262,1775635078603,3000.0,0.00031506,120]
[420053263,1775635086431,3000.0,0.00031506,120]
[420053266,1775635101241,2500.0,0.00031506,120]
[420053267,1775635108456,2500.0,0.00031506,120]
[420053268,1775635115596,2500.0,0.00031506,120]
[420053269,1775635122331,2500.0,0.00031506,120]
[420053270,1775635129747,2500.0,0.00031506,120]
[420053271,1775635136892,2500.0,0.00031506,120]
[420053273,1775635195833,939.7,0.00031506,120]
[420053277,1775635278217,708.0,0.000315,120]
[420053278,1775635281636,-183.68908051,0.00013599,2]
[420053313,1775635538325,-414.48375,0.00013063,2]
[420053331,1775635813486,165.17724863,0.0003,120]
[420053332,1775635819481,503.70759371,0.0003,120]
[420053333,1775635820364,1000.0,0.00031507,120]
[420053334,1775635831427,9978.12,0.0001,2]
[420053372,1775635833973,1000.0,0.00031507,120]
[420053418,1775635838517,-5000.0,0.00012803,2]
[420053419,1775635838526,-601.0,0.00012803,2]
[420053420,1775635838536,-1758.26283516,0.00012932,2]
[420053934,1775635844014,-1848.20107396,0.00012932,2]
[420054184,1775635846708,-1393.53609088,0.00012932,2]
[420054186,1775635846718,-500.0,0.00013599,2]
[420054188,1775635846728,-500.0,0.00013599,2]
[420054190,1775635846737,-479.51808532,0.00013599,2]
[420054192,1775635846746,-1000.0,0.00013699,2]
[420054194,1775635846756,-300.0,0.00014108,2]
[420054196,1775635846765,-300.0,0.00014108,2]
[420054198,1775635846775,-300.0,0.00014108,2]
[420054200,1775635846784,-300.0,0.00014108,2]
[420054202,1775635846793,-300.0,0.00014108,2]
[420054204,1775635846803,-300.0,0.00014108,2]
[420054206,1775635846812,-300.0,0.00014108,2]
[420054208,1775635846823,-300.0,0.00014108,2]
[420054210,1775635846832,-300.0,0.00014108,2]
[420054212,1775635846842,-300.0,0.00014108,2]
[420054214,1775635846852,-300.0,0.00014108,2]
[420054216,1775635846862,-300.0,0.00014108,2]
[420054218,1775635846872,-300.0,0.00014108,2]
[420054220,1775635846882,-300.0,0.00014108,2]
[420054222,1775635846892,-300.0,0.00014108,2]
[420054224,1775635846902,-1229.94950076,0.00014175,2]
[420054226,1775635846912,-645.37695585,0.000142,2]
[420054228,1775635846921,-554.79921337,0.000142,2]
[420054230,1775635846930,-505.39116533,0.000142,2]
[420054232,1775635846942,-500.0,0.000142,2]
[420054234,1775635846953,-600.0,0.00014389,2]
[420054236,1775635846961,-1000.0,0.00014748,2]
[420054238,1775635846971,-2426.88994387,0.00015236,2]
[420054240,1775635846981,-1500.0,0.00015296,2]
[420054242,1775635846990,-254.64996608,0.00015728,2]
[420054583,1775636263507,1688.02,0.00031507,120]
[420054585,1775636321544,4410.117,0.00031507,120]
[420054600,1775636667509,164.044,0.00031507,120]
[420054649,1775637023280,200.0,0.00031507,120]
[420054717,1775637039027,-1430.55,0.00013599,2]
[420055159,1775637043890,-2278.80907994,0.00013599,2]
[420055682,1775637049447,-2220.05931814,0.00013599,2]
[420055684,1775637049457,-104.35832358,0.00013599,2]
[420055894,1775637081163,-509.64167642,0.00013599,2]
[420055895,1775637081193,-250.12218444,0.00013699,2]
[420055896,1775637081229,-749.87781556,0.00013699,2]
[420055897,1775637110310,-300.0,0.00013831,2]
[420055898,1775637110346,-159.76386086,0.00013831,2]
[420055899,1775637123600,540.60962113,0.0001,2]
[420055900,1775637174758,200.0,0.00031506,120]
[420055901,1775637211093,157.97,0.00031506,120]
[420055912,1775637819127,1000.0,0.00031,120]
[420055913,1775637923266,499.77447,0.00031507,120]
[420055931,1775638232626,-830.13178478,0.00013217,2]
[420055932,1775638232636,-608.0,0.00013217,2]
[420055933,1775638232646,-401.07094707,0.00013486,2]
[420055934,1775638232656,-215.58,0.000135,2]
[420055935,1775638232666,-300.0,0.00013698,2]
[420055936,1775638232676,-1000.0,0.00013699,2]
[420055937,1775638232686,-300.0,0.00013831,2]
[420055938,1775638232696,-300.0,0.00013831,2]
[420055939,1775638232705,-300.0,0.00013831,2]
[420055940,1775638232715,-300.0,0.00013831,2]
[420055941,1775638232725,-1200.0,0.00013831,2]
[420055942,1775638232735,-300.0,0.00013832,2]
[420055943,1775638232745,-300.0,0.00013832,2]
[420055945,1775638232755,-300.0,0.00013832,2]
[420055947,1775638232764,-300.0,0.00013832,2]
[420055948,1775638232775,-300.0,0.00013832,2]
[420055949,1775638232785,-300.0,0.00013832,2]
[420055950,1775638232795,-300.0,0.00013832,2]
[420055951,1775638232804,-300.0,0.00013832,2]
[420055952,1775638232814,-300.0,0.00013832,2]
[420055953,1775638232823,-300.0,0.00013832,2]
[420055954,1775638232833,-300.0,0.00013832,2]
[420055955,1775638232843,-300.0,0.00013832,2]
[420055956,1775638232853,-300.0,0.00013832,2]
[420055959,1775638232879,-300.0,0.00013832,2]
[420055961,1775638232889,-300.0,0.00013832,2]
[420055962,1775638232899,-151.36745,0.000139,2]
[420055963,1775638232908,-500.0,0.000139,2]
[420055964,1775638232918,-154.7398163,0.000139,2]
[420055965,1775638232928,-151.0,0.000139,2]
[420055966,1775638232937,-151.0,0.000139,2]
[420055967,1775638232946,-151.0,0.000139,2]
[420055968,1775638232956,-151.0,0.000139,2]
[420055969,1775638232966,-151.0,0.000139,2]
[420055970,1775638232976,-151.0,0.000139,2]
[420055971,1775638232985,-151.0,0.000139,2]
[420055972,1775638232996,-151.0,0.000139,2]
[420055973,1775638233005,-151.0,0.000139,2]
[420055974,1775638233015,-151.0,0.000139,2]
[420055975,1775638233025,-151.0,0.000139,2]
[420055976,1775638233034,-151.0,0.000139,2]